fUSD/lending_fUSD_20240915
["ID","MTS","AMOUNT","RATE_DAILY","PERIOD"]
[338248157,1726437038563,-316.7567316,0.00012996,2]
[338248158,1726437038573,-161.54999041,0.00012999,2]
[338248159,1726437038583,-150.99,0.00012999,2]
[338248160,1726437038594,-299.99,0.00012999,2]
[338248161,1726437038603,-3145.2185368,0.00013,2]
[338248162,1726437038615,-1279.7631426,0.00013,2]
[338248163,1726437038627,-443.81585153,0.00013,2]
[338248166,1726437040164,-1160.76715056,0.00013,2]
[338248226,1726437044375,-111498.11136302,0.00013,2]
[338248232,1726437046184,-1724.88346307,0.00013,2]
[338248233,1726437088602,250.0,0.00012473,2]
[338248234,1726437154291,164.41,0.00012289,2]
[338248235,1726437176799,3548.89197516,0.00012594,2]
[338248236,1726437278456,175.4,0.00012278,2]
[338248238,1726437355246,15443.02,0.00012249,2]
[338248239,1726437444668,287.1,0.00010247,2]
[338248240,1726437444891,287.1,0.00012511,2]
[338248241,1726437455178,154.64,0.00010959,2]
[338248242,1726437487017,332.02,0.00012163,2]
[338248243,1726437487104,332.02,0.00012166,2]
[338248244,1726437487327,332.02,0.00012169,2]
[338248245,1726437487537,332.02,0.00012172,2]
[338248246,1726437487742,332.02,0.00012176,2]
[338248247,1726437487965,332.02,0.00012179,2]
[338248248,1726437488180,332.02,0.00012182,2]
[338248249,1726437488410,332.02,0.00012185,2]
[338248250,1726437488631,332.02,0.00012189,2]
[338248251,1726437488867,332.02,0.00012192,2]
[338248252,1726437489087,332.02,0.00012195,2]
[338248253,1726437489337,332.02,0.00012198,2]
[338248254,1726437489533,332.02,0.00012201,2]
[338248255,1726437489758,332.02,0.00012205,2]
[338248256,1726437489983,332.02,0.00012208,2]
[338248257,1726437490267,332.02,0.00012211,2]
[338248258,1726437490479,332.02,0.00012214,2]
[338248259,1726437490702,332.02,0.00012217,2]
[338248260,1726437490920,332.02,0.00012221,2]
[338248261,1726437491138,332.02,0.00012224,2]
[338248262,1726437526189,265.5,0.00012145,2]
[338248263,1726437643491,171.53,0.00012113,2]
[338248264,1726437652009,504.1,0.00012105,2]
[338248265,1726437660491,250.0,0.00012105,2]
[338248266,1726437870271,173.92,0.00012029,2]
[338248339,1726437986760,273.14,0.00010121,2]
[338248340,1726437986997,273.14,0.00012385,2]
[338248341,1726438025797,151.95,0.00010959,2]
[338248356,1726438113929,-220.32681932,0.00012646,2]
[338248358,1726438113957,-175.09,0.00012646,2]
[338248359,1726438113985,-471.80072137,0.00012651,2]
[338248362,1726438148796,250.0,0.00012067,2]
[338248367,1726438172580,596.72,0.00012081,2]
[338248378,1726438232527,-209.59593,0.0001287,2]
[338248379,1726438232542,-318.3561646,0.00012899,2]
[338248380,1726438232552,-209.59593,0.000129,2]
[338248381,1726438232562,-150.14448513,0.000129,2]
[338248382,1726438232572,-192.49457852,0.000129,2]
[338248383,1726438232584,-209.59593,0.0001293,2]
[338248384,1726438232594,-204.16590197,0.00012973,2]
[338248385,1726438232604,-500.0,0.00012973,2]
[338248386,1726438232614,-827.609,0.00012973,2]
[338248387,1726438232624,-188.237,0.00012973,2]
[338248388,1726438232635,-150.0,0.00012986,2]
[338248389,1726438232644,-300.0,0.00012986,2]
[338248390,1726438232654,-1902.0,0.00012987,2]
[338248393,1726438232664,-553.0,0.00012987,2]
[338248395,1726438232674,-1124.0,0.00012987,2]
[338248397,1726438232685,-248.0,0.00012987,2]
[338248398,1726438232694,-77.51076233,0.00012987,2]
[338248400,1726438232706,-1840.48923767,0.00012987,2]
[338248402,1726438232717,-806.0,0.00012987,2]
[338248404,1726438232727,-3345.0,0.00012987,2]
[338248406,1726438232737,-47.51076233,0.00012989,2]
[338248407,1726438232750,-221.46021552,0.00012989,2]
[338248408,1726438232761,-152.0,0.00012989,2]
[338248409,1726438232771,-268.97097785,0.0001299,2]
[338248410,1726438232781,-268.97097785,0.0001299,2]
[338248411,1726438232792,-152.0,0.0001299,2]
[338248412,1726438232802,-129.85166878,0.0001299,2]
[338248421,1726438238610,-22.14833122,0.0001299,2]
[338248422,1726438238620,-152.0,0.0001299,2]
[338248423,1726438238630,-249.1951097,0.00012994,2]
[338248424,1726438238640,-179.2309067,0.00012994,2]
[338248425,1726438238651,-3550.1866012,0.00012994,2]
[338248426,1726438238660,-17388.2913386,0.00012994,2]
[338248427,1726438238670,-500.0,0.00012998,2]
[338248428,1726438238680,-500.0,0.00012998,2]
[338248429,1726438238696,-500.0,0.00012998,2]
[338248430,1726438238706,-500.0,0.00012998,2]
[338248431,1726438238716,-207.53726355,0.00012998,2]
[338248432,1726438238726,-225.15157916,0.00012998,2]
[338248433,1726438238736,-500.0,0.00012998,2]
[338248434,1726438238745,-500.0,0.00012998,2]
[338248435,1726438238754,-502.43784067,0.00012998,2]
[338248436,1726438238764,-500.0,0.00012998,2]
[338248437,1726438238774,-500.0,0.00012998,2]
[338248438,1726438238784,-3923.97,0.00012999,2]
[338248439,1726438238793,-500.0,0.00012999,2]
[338248440,1726438238803,-3923.97,0.00012999,2]
[338248441,1726438238813,-500.0,0.00012999,2]
[338248442,1726438238822,-3923.97,0.00012999,2]
[338248443,1726438238831,-500.0,0.00012999,2]
[338248444,1726438238841,-500.0,0.00012999,2]
[338248445,1726438238852,-1572.2732972,0.00012999,2]
[338248446,1726438238865,-2351.6967028,0.00012999,2]
[338248447,1726438238878,-3923.97,0.00012999,2]
[338248448,1726438238888,-500.0,0.00012999,2]
[338248449,1726438238898,-3923.97,0.00012999,2]
[338248450,1726438238908,-500.0,0.00012999,2]
[338248451,1726438238919,-3923.97,0.00012999,2]
[338248452,1726438238928,-500.0,0.00012999,2]
[338248454,1726438238941,-3923.97,0.00012999,2]
[338248456,1726438238953,-500.0,0.00012999,2]
[338248458,1726438238962,-3923.97,0.00012999,2]
[338248460,1726438238972,-450.02688174,0.00012999,2]
[338248462,1726438238982,-1076.42,0.00012999,2]
[338248464,1726438238993,-1076.42,0.00012999,2]
[338248466,1726438239002,-1076.42,0.00012999,2]
[338248468,1726438239013,-991.46,0.00012999,2]
[338248469,1726438239023,-1363.52,0.00012999,2]
[338248471,1726438239033,-991.46,0.00012999,2]
[338248473,1726438239043,-1363.52,0.00012999,2]
[338248475,1726438239052,-991.46,0.00012999,2]
[338248477,1726438239061,-1363.52,0.00012999,2]
[338248479,1726438239071,-1363.52,0.00012999,2]
[338248481,1726438239081,-991.46,0.00012999,2]
[338248482,1726438239091,-1363.52,0.00012999,2]
[338248483,1726438239101,-991.46,0.00012999,2]
[338248484,1726438239110,-1363.52,0.00012999,2]
[338248485,1726438239120,-991.46,0.00012999,2]
[338248486,1726438239130,-1076.42,0.00012999,2]
[338248487,1726438239140,-1363.52,0.00012999,2]
[338248488,1726438239150,-991.46,0.00012999,2]
[338248489,1726438239160,-1076.42,0.00012999,2]
[338248490,1726438239169,-1363.52,0.00012999,2]
[338248491,1726438239179,-991.46,0.00012999,2]
[338248492,1726438239190,-1076.42,0.00012999,2]
[338248493,1726438239200,-1363.52,0.00012999,2]
[338248494,1726438239209,-991.46,0.00012999,2]
[338248495,1726438239219,-1076.42,0.00012999,2]
[338248496,1726438239229,-1076.42,0.00012999,2]
[338248497,1726438239238,-1076.42,0.00012999,2]
[338248498,1726438239248,-3327.66,0.00012999,2]
[338248499,1726438239258,-3327.66,0.00012999,2]
[338248500,1726438239267,-3327.66,0.00012999,2]
[338248501,1726438239277,-500.0,0.00012999,2]
[338248502,1726438239286,-3327.66,0.00012999,2]
[338248503,1726438239296,-500.0,0.00012999,2]
[338248504,1726438239306,-3327.66,0.00012999,2]
[338248505,1726438239316,-500.0,0.00012999,2]
[338248506,1726438239325,-500.0,0.00012999,2]
[338248507,1726438239334,-3327.66,0.00012999,2]
[338248508,1726438239344,-500.0,0.00012999,2]
[338248509,1726438239354,-500.0,0.00012999,2]
[338248510,1726438239363,-3327.66,0.00012999,2]
[338248511,1726438239373,-500.0,0.00012999,2]
[338248512,1726438239382,-194.83760435,0.00012999,2]
[338248513,1726438239391,-500.0,0.00012999,2]
[338248514,1726438239401,-3327.66,0.00012999,2]
[338248515,1726438239411,-500.0,0.00012999,2]
[338248516,1726438239420,-3327.66,0.00012999,2]
[338248517,1726438239429,-500.0,0.00012999,2]
[338248518,1726438239440,-500.0,0.00012999,2]
[338248519,1726438239680,-500.0,0.00012999,2]
[338248520,1726438239721,-3555.11,0.00012999,2]
[338248521,1726438239732,-500.0,0.00012999,2]
[338248522,1726438239742,-3555.11,0.00012999,2]
[338248523,1726438239751,-500.0,0.00012999,2]
[338248524,1726438239761,-4057.5,0.00012999,2]
[338248525,1726438239770,-3555.11,0.00012999,2]
[338248526,1726438239780,-500.0,0.00012999,2]
[338248527,1726438239790,-4057.5,0.00012999,2]
[338248528,1726438239799,-3555.11,0.00012999,2]
[338248529,1726438239809,-500.0,0.00012999,2]
[338248530,1726438239819,-4057.5,0.00012999,2]
[338248531,1726438239829,-3555.11,0.00012999,2]
[338248532,1726438239839,-500.0,0.00012999,2]
[338248533,1726438239849,-4057.5,0.00012999,2]
[338248534,1726438239859,-3555.11,0.00012999,2]
[338248535,1726438239869,-500.0,0.00012999,2]
[338248536,1726438239878,-4057.5,0.00012999,2]
[338248537,1726438239889,-3555.11,0.00012999,2]
[338248538,1726438239901,-500.0,0.00012999,2]
[338248539,1726438239912,-2383.4,0.00012999,2]
[338248540,1726438239922,-4057.5,0.00012999,2]
[338248541,1726438239931,-3555.11,0.00012999,2]
[338248542,1726438239945,-500.0,0.00012999,2]
[338248543,1726438239954,-4057.5,0.00012999,2]
[338248544,1726438239964,-500.0,0.00012999,2]
[338248545,1726438239974,-3555.11,0.00012999,2]
[338248546,1726438239984,-2383.4,0.00012999,2]
[338248547,1726438239993,-2383.4,0.00012999,2]
[338248548,1726438240003,-4057.5,0.00012999,2]
[338248549,1726438240013,-2383.4,0.00012999,2]
[338248550,1726438240022,-4057.5,0.00012999,2]
[338248551,1726438240032,-2383.4,0.00012999,2]
[338248552,1726438240041,-2383.4,0.00012999,2]
[338248553,1726438240050,-2583.01,0.00012999,2]
[338248554,1726438240059,-2383.4,0.00012999,2]
[338248555,1726438240069,-2583.01,0.00012999,2]
[338248556,1726438240079,-2383.4,0.00012999,2]
[338248557,1726438240088,-2583.01,0.00012999,2]
[338248558,1726438240098,-2383.4,0.00012999,2]
[338248559,1726438240107,-2583.01,0.00012999,2]
[338248560,1726438240116,-2583.01,0.00012999,2]
[338248561,1726438240125,-2583.01,0.00012999,2]
[338248562,1726438240135,-2583.01,0.00012999,2]
[338248563,1726438240143,-2583.01,0.00012999,2]
[338248564,1726438240152,-2583.01,0.00012999,2]
[338248565,1726438240162,-4180.3,0.00012999,2]
[338248566,1726438240171,-4180.3,0.00012999,2]
[338248567,1726438240180,-4180.3,0.00012999,2]
[338248568,1726438240192,-4180.3,0.00012999,2]
[338248569,1726438240201,-4180.3,0.00012999,2]
[338248570,1726438240211,-500.0,0.00012999,2]
[338248571,1726438240220,-4180.3,0.00012999,2]
[338248572,1726438240229,-500.0,0.00012999,2]
[338248573,1726438240238,-4180.3,0.00012999,2]
[338248574,1726438240248,-178.43223613,0.00012999,2]
[338248575,1726438240257,-4180.3,0.00012999,2]
[338248576,1726438240266,-500.0,0.00012999,2]
[338248577,1726438240275,-4180.3,0.00012999,2]
[338248578,1726438240284,-500.0,0.00012999,2]
[338248579,1726438240293,-500.0,0.00012999,2]
[338248580,1726438240302,-500.25985979,0.00012999,2]
[338248581,1726438240312,-2083.63,0.00012999,2]
[338248582,1726438240321,-2083.63,0.00012999,2]
[338248583,1726438240330,-2053.95,0.00012999,2]
[338248584,1726438240340,-2083.63,0.00012999,2]
[338248585,1726438240350,-2053.95,0.00012999,2]
[338248586,1726438240359,-2083.63,0.00012999,2]
[338248587,1726438240368,-2053.95,0.00012999,2]
[338248588,1726438240377,-2083.63,0.00012999,2]
[338248589,1726438240387,-2053.95,0.00012999,2]
[338248590,1726438240396,-2083.63,0.00012999,2]
[338248591,1726438240406,-2053.95,0.00012999,2]
[338248592,1726438240416,-2083.63,0.00012999,2]
[338248593,1726438240425,-2053.95,0.00012999,2]
[338248594,1726438240435,-2083.63,0.00012999,2]
[338248595,1726438240449,-2083.63,0.00012999,2]
[338248596,1726438240459,-500.0,0.00012999,2]
[338248597,1726438240468,-2053.95,0.00012999,2]
[338248598,1726438240478,-500.0,0.00012999,2]
[338248599,1726438240487,-356.19216263,0.00012999,2]
[338248600,1726438240496,-2053.95,0.00012999,2]
[338248601,1726438240505,-2053.95,0.00012999,2]
[338248602,1726438240514,-500.0,0.00012999,2]
[338248603,1726438240523,-500.0,0.00012999,2]
[338248604,1726438240532,-500.0,0.00012999,2]
[338248605,1726438240542,-500.0,0.00012999,2]
[338248606,1726438240551,-500.0,0.00012999,2]
[338248607,1726438240560,-2449.38,0.00012999,2]
[338248608,1726438240570,-500.0,0.00012999,2]
[338248609,1726438240579,-500.0,0.00012999,2]
[338248610,1726438240588,-2449.38,0.00012999,2]
[338248611,1726438240597,-500.0,0.00012999,2]
[338248612,1726438240607,-500.0,0.00012999,2]
[338248613,1726438240616,-2449.38,0.00012999,2]
[338248614,1726438240625,-500.0,0.00012999,2]
[338248615,1726438240634,-500.0,0.00012999,2]
[338248616,1726438240643,-2481.83,0.00012999,2]
[338248617,1726438240652,-2449.38,0.00012999,2]
[338248618,1726438240661,-500.0,0.00012999,2]
[338248619,1726438240671,-500.0,0.00012999,2]
[338248620,1726438240680,-2481.83,0.00012999,2]
[338248621,1726438240692,-2449.38,0.00012999,2]
[338248623,1726438240701,-500.0,0.00012999,2]
[338248624,1726438240710,-500.0,0.00012999,2]
[338248628,1726438240728,-2481.83,0.00012999,2]
[338248630,1726438240743,-2449.38,0.00012999,2]
[338248632,1726438240753,-500.0,0.00012999,2]
[338248634,1726438240763,-500.0,0.00012999,2]
[338248635,1726438240773,-2449.38,0.00012999,2]
[338248636,1726438240782,-2449.38,0.00012999,2]
[338248637,1726438240793,-2481.83,0.00012999,2]
[338248638,1726438240802,-2449.38,0.00012999,2]
[338248639,1726438240812,-500.0,0.00012999,2]
[338248640,1726438240823,-2481.83,0.00012999,2]
[338248641,1726438240832,-2481.83,0.00012999,2]
[338248642,1726438240842,-7111.5,0.00012999,2]
[338248643,1726438240851,-7111.5,0.00012999,2]
[338248644,1726438240862,-2481.83,0.00012999,2]
[338248645,1726438240871,-7111.5,0.00012999,2]
[338248646,1726438240881,-2481.83,0.00012999,2]
[338248647,1726438240893,-7111.5,0.00012999,2]
[338248648,1726438240903,-2481.83,0.00012999,2]
[338248649,1726438240913,-7111.5,0.00012999,2]
[338248650,1726438240923,-7111.5,0.00012999,2]
[338248651,1726438240932,-7111.5,0.00012999,2]
[338248652,1726438240943,-7111.5,0.00012999,2]
[338248653,1726438240953,-7111.5,0.00012999,2]
[338248654,1726438240963,-2774.44,0.00012999,2]
[338248655,1726438240972,-2774.44,0.00012999,2]
[338248656,1726438240982,-2774.44,0.00012999,2]
[338248657,1726438240991,-2774.44,0.00012999,2]
[338248658,1726438241001,-2774.44,0.00012999,2]
[338248659,1726438241011,-1069.49,0.00012999,2]
[338248660,1726438241020,-2774.44,0.00012999,2]
[338248661,1726438241031,-1069.49,0.00012999,2]
[338248662,1726438241040,-2774.44,0.00012999,2]
[338248663,1726438241050,-1069.49,0.00012999,2]
[338248664,1726438241060,-2774.44,0.00012999,2]
[338248665,1726438241069,-1069.49,0.00012999,2]
[338248666,1726438241080,-2774.44,0.00012999,2]
[338248667,1726438241089,-1069.49,0.00012999,2]
[338248668,1726438241099,-1069.49,0.00012999,2]
[338248669,1726438241109,-1069.49,0.00012999,2]
[338248670,1726438241119,-1069.49,0.00012999,2]
[338248671,1726438241128,-500.0,0.00012999,2]
[338248672,1726438241138,-1069.49,0.00012999,2]
[338248673,1726438241147,-500.0,0.00012999,2]
[338248674,1726438241162,-1678.15,0.00012999,2]
[338248675,1726438241172,-500.0,0.00012999,2]
[338248676,1726438241182,-1678.15,0.00012999,2]
[338248677,1726438241194,-500.0,0.00012999,2]
[338248678,1726438241204,-1678.15,0.00012999,2]
[338248679,1726438241214,-500.0,0.00012999,2]
[338248680,1726438241224,-1678.15,0.00012999,2]
[338248681,1726438241234,-500.0,0.00012999,2]
[338248682,1726438241243,-7953.64,0.00012999,2]
[338248683,1726438241253,-1678.15,0.00012999,2]
[338248684,1726438241264,-500.0,0.00012999,2]
[338248685,1726438241274,-1678.15,0.00012999,2]
[338248686,1726438241284,-7953.64,0.00012999,2]
[338248687,1726438241294,-2946.8,0.00012999,2]
[338248688,1726438241304,-500.0,0.00012999,2]
[338248689,1726438241314,-7953.64,0.00012999,2]
[338248690,1726438241323,-2946.8,0.00012999,2]
[338248691,1726438241333,-500.0,0.00012999,2]
[338248692,1726438241343,-7953.64,0.00012999,2]
[338248693,1726438241354,-1678.15,0.00012999,2]
[338248694,1726438241363,-2946.8,0.00012999,2]
[338248695,1726438241373,-7953.64,0.00012999,2]
[338248696,1726438241384,-1678.15,0.00012999,2]
[338248697,1726438241393,-2946.8,0.00012999,2]
[338248698,1726438241403,-7953.64,0.00012999,2]
[338248699,1726438241413,-1678.15,0.00012999,2]
[338248700,1726438241423,-2946.8,0.00012999,2]
[338248701,1726438241433,-7953.64,0.00012999,2]
[338248702,1726438241446,-2946.8,0.00012999,2]
[338248703,1726438241455,-7953.64,0.00012999,2]
[338248704,1726438241465,-2946.8,0.00012999,2]
[338248705,1726438241475,-7953.64,0.00012999,2]
[338248706,1726438241485,-2946.8,0.00012999,2]
[338248707,1726438241495,-2946.8,0.00012999,2]
[338248708,1726438241506,-500.0,0.00012999,2]
[338248709,1726438241515,-509.08,0.00012999,2]
[338248710,1726438241525,-509.08,0.00012999,2]
[338248711,1726438241535,-509.08,0.00012999,2]
[338248712,1726438241544,-509.08,0.00012999,2]
[338248713,1726438241554,-509.08,0.00012999,2]
[338248714,1726438241563,-509.08,0.00012999,2]
[338248715,1726438241573,-509.08,0.00012999,2]
[338248716,1726438241582,-509.08,0.00012999,2]
[338248717,1726438241592,-509.08,0.00012999,2]
[338248718,1726438241601,-2383.94,0.00012999,2]
[338248719,1726438241615,-2383.94,0.00012999,2]
[338248720,1726438241625,-2383.94,0.00012999,2]
[338248721,1726438241635,-2383.94,0.00012999,2]
[338248722,1726438241646,-2383.94,0.00012999,2]
[338248723,1726438241659,-2383.94,0.00012999,2]
[338248724,1726438241670,-2383.94,0.00012999,2]
[338248725,1726438241679,-2383.94,0.00012999,2]
[338248726,1726438241690,-2383.94,0.00012999,2]
[338248727,1726438241706,-960.8,0.00012999,2]
[338248728,1726438241717,-960.8,0.00012999,2]
[338248729,1726438241727,-960.8,0.00012999,2]
[338248730,1726438241737,-960.8,0.00012999,2]
[338248731,1726438241746,-960.8,0.00012999,2]
[338248732,1726438241756,-960.8,0.00012999,2]
[338248733,1726438241765,-960.8,0.00012999,2]
[338248734,1726438241775,-960.8,0.00012999,2]
[338248735,1726438241785,-960.8,0.00012999,2]
[338248736,1726438241795,-500.0,0.00012999,2]
[338248737,1726438241805,-500.0,0.00012999,2]
[338248738,1726438241814,-412.23408376,0.00012999,2]
[338248739,1726438241824,-500.0,0.00012999,2]
[338248740,1726438241834,-500.0,0.00012999,2]
[338248741,1726438241844,-500.0,0.00012999,2]
[338248742,1726438241855,-290.17091821,0.00012999,2]
[338248743,1726438241865,-1982.23,0.00012999,2]
[338248744,1726438241874,-1982.23,0.00012999,2]
[338248745,1726438241888,-1982.23,0.00012999,2]
[338248746,1726438241902,-1982.23,0.00012999,2]
[338248747,1726438241913,-1982.23,0.00012999,2]
[338248748,1726438241923,-1982.23,0.00012999,2]
[338248749,1726438241933,-1982.23,0.00012999,2]
[338248750,1726438241947,-1982.23,0.00012999,2]
[338248751,1726438241957,-1982.23,0.00012999,2]
[338248752,1726438241967,-500.0,0.00012999,2]
[338248753,1726438241978,-500.0,0.00012999,2]
[338248754,1726438241988,-500.0,0.00012999,2]
[338248755,1726438241998,-500.0,0.00012999,2]
[338248756,1726438242008,-500.0,0.00012999,2]
[338248757,1726438242017,-500.0,0.00012999,2]
[338248758,1726438242027,-500.0,0.00012999,2]
[338248759,1726438242037,-500.0,0.00012999,2]
[338248760,1726438242047,-500.0,0.00012999,2]
[338248761,1726438242058,-500.0,0.00012999,2]
[338248762,1726438242067,-500.0,0.00012999,2]
[338248763,1726438242078,-500.0,0.00012999,2]
[338248764,1726438242088,-500.0,0.00012999,2]
[338248765,1726438242098,-500.0,0.00012999,2]
[338248766,1726438242107,-500.0,0.00012999,2]
[338248767,1726438242117,-500.0,0.00012999,2]
[338248768,1726438242126,-500.0,0.00012999,2]
[338248769,1726438242137,-500.0,0.00012999,2]
[338248770,1726438242146,-500.0,0.00012999,2]
[338248771,1726438242156,-500.0,0.00012999,2]
[338248772,1726438242168,-500.0,0.00012999,2]
[338248773,1726438242178,-500.0,0.00012999,2]
[338248774,1726438242188,-500.0,0.00012999,2]
[338248775,1726438242200,-500.0,0.00012999,2]
[338248776,1726438242210,-500.0,0.00012999,2]
[338248777,1726438242220,-500.0,0.00012999,2]
[338248778,1726438242230,-500.0,0.00012999,2]
[338248779,1726438242239,-500.0,0.00012999,2]
[338248780,1726438242249,-500.0,0.00012999,2]
[338248781,1726438242260,-500.0,0.00012999,2]
[338248782,1726438242270,-500.69618548,0.00012999,2]
[338248783,1726438242280,-500.0,0.00012999,2]
[338248784,1726438242291,-500.0,0.00012999,2]
[338248785,1726438242300,-197.78872102,0.00012999,2]
[338248786,1726438242310,-500.0,0.00012999,2]
[338248787,1726438242320,-500.0,0.00012999,2]
[338248788,1726438242330,-500.0,0.00012999,2]
[338248789,1726438242340,-500.0,0.00012999,2]
[338248790,1726438242350,-500.0,0.00012999,2]
[338248791,1726438242360,-500.0,0.00012999,2]
[338248792,1726438242370,-500.0,0.00012999,2]
[338248793,1726438242380,-500.0,0.00012999,2]
[338248794,1726438242390,-289.34018353,0.00012999,2]
[338248795,1726438242400,-545.0,0.00013,2]
[338248796,1726438242410,-132171.52290936,0.00013,2]
[338248797,1726438242420,-696175.3037565,0.00013,2]
[338248798,1726438242431,-427903.87430431,0.00013,2]
[338248799,1726438242441,-1700.80946594,0.00013,2]
[338248800,1726438242451,-407214.96118656,0.00013,2]
[338248801,1726438242462,-268691.37187682,0.00013,2]
[338248802,1726438242489,-1207.65874745,0.00013,2]
[338248803,1726438242542,-30762.99999933,0.00013,2]
[338248804,1726438242558,-2980.05,0.00013,2]
[338249443,1726438295828,820.6264,0.00012551,2]
[338249444,1726438298804,250.0,0.00012496,2]
[338249445,1726438396019,7206.19,0.00012113,2]
[338249446,1726438412741,167.0,0.0001246,2]
[338249447,1726438465099,242.79,0.00012113,2]
[338249449,1726438515208,339.49,0.0001211,2]
[338249450,1726438532836,165.74,0.00012123,2]
[338249451,1726438533066,165.74,0.00012184,2]
[338249452,1726438542255,181.26,0.00010959,2]
[338249453,1726438568943,260.58,0.00010173,2]
[338249454,1726438569172,260.58,0.00012436,2]
[338249455,1726438640283,-150.0,0.00015253,120]
[338249456,1726438640307,-150.0,0.00015379,120]
[338249457,1726438640330,-150.0,0.00015546,120]
[338249458,1726438640356,-150.0,0.00015559,120]
[338249459,1726438640378,-150.0,0.0001556,120]
[338249460,1726438666803,-150.0,0.00016046,120]
[338249461,1726438666826,-150.0,0.00016232,120]
[338249462,1726438666848,-150.0,0.00016288,120]
[338249463,1726438666868,-150.0,0.00016306,120]
[338249464,1726438666890,-150.0,0.0001631,120]
[338249465,1726438666914,-150.0,0.00016702,120]
[338249466,1726438666937,-150.0,0.00016766,120]
[338249467,1726438667856,250.0,0.0001212,2]
[338249468,1726438720258,-500.0,0.00012998,3]
[338249469,1726438720279,-500.0,0.00012998,3]
[338249470,1726438720301,-500.0,0.00012999,3]
[338249471,1726438720323,-500.0,0.00012999,3]
[338249472,1726438720343,-500.0,0.00012999,3]
[338249473,1726438720365,-422.62854249,0.00012999,3]
[338249474,1726438747192,-150.0,0.00014,5]
[338249475,1726438810572,1000.0,0.00012237,2]
[338249476,1726438993443,1180.47,0.00012341,2]
[338249477,1726439057345,248.95,0.00010291,2]
[338249478,1726439057569,248.95,0.00012555,2]
[338249479,1726439070246,156.37,0.00010959,2]
[338250839,1726439317240,250.0,0.00012275,2]
[338250846,1726439392190,200.0,0.00012323,2]
[338250847,1726439430087,500.0,0.00010323,2]
[338250852,1726439431527,-432.1134,0.0001287,2]
[338250853,1726439431538,-103.65472977,0.0001287,2]
[338250854,1726439431551,-328.45867023,0.0001287,2]
[338250855,1726439431561,-1000.8253575,0.00012899,2]
[338250856,1726439431574,-7703.13545526,0.00012899,2]
[338250857,1726439431585,-420.09751207,0.00012899,2]
[338250858,1726439431627,-2195.73008022,0.00012899,2]
[338250859,1726439431639,-757.23208,0.00012899,2]
[338250860,1726439431651,-2190.90531495,0.00012899,2]
[338250861,1726439431661,-1000.0,0.000129,2]
[338250862,1726439431671,-92.75162593,0.000129,2]
[338250863,1726439431683,-59.58679953,0.000129,2]
[338250864,1726439431693,-203.1197931,0.000129,2]
[338250879,1726439431993,-118.47484281,0.000129,2]
[338250880,1726439432004,-2959.2585,0.000129,2]
[338250882,1726439432013,-254.14668118,0.000129,2]
[338250884,1726439432025,-1396.35356278,0.000129,2]
[338250886,1726439432037,-2456.7,0.000129,2]
[338250888,1726439432055,-1440.43885463,0.000129,2]
[338250890,1726439432067,-706.11031433,0.000129,2]